Cogmind - Beta 10.2 *** ADVENTURER MODE // 2021.06.01 @ 23:56:00 Player: soymachine Result: Destroyed by B-99 Colossus with Linear Accelerator Performance ------------- Evolutions (9) 4500 Regions Visited (16) 3200 Robots Destroyed (182) 910 Value Destroyed (8163) 8163 Prototype IDs (8) 160 Alien Tech Used (0) 0 Bonus (1955) 1955 TOTAL SCORE: 18888 Bonus ------- High Alert Combat Kills 408 Follower Combat Kills 1214 Met Warlord at Base 500 MAIN.C Attacked Warlord 500 Friendly Fire -667 Cogmind --------- Core Integrity 0/1600 Matter 764/800 Energy 100/100 System Corruption 31% Temperature Cool (69) Movement Core (50) Location -1/Command Parts ------- > --- POWER (2) -------- (None) > --- PROPULSION (9) --- (None) > --- UTILITY (11) ----- Experimental Matter Compressor Advanced Signal Interpreter Advanced Target Analyzer > --- WEAPON (3) ------- (None) > --- INVENTORY (4) ---- Drone Bay (2/2) Gamma Rifle Advanced Remote Datajack Peak State ------------ > --- POWER ------------ Quantum Reactor Light Quantum Reactor > --- PROPULSION ------- Myomer Leg Myomer Leg Myomer Leg Biometal Leg Biometal Leg Biometal Leg Biometal Leg Centrium Leg Centrium Leg > --- UTILITY ---------- Advanced Coolant Injector Large Storage Unit Energy Well Experimental Matter Compressor Advanced Signal Interpreter Long-range Terrain Scanner Advanced Terrain Scan Processor Advanced Target Analyzer Improved Hacking Suite System Shield > --- WEAPON ----------- Enhanced Nova Cannon Micro-nuke Launcher Enhanced Force Lance > --- INVENTORY -------- Quantum Reactor Drone Bay Gamma Rifle Phase Gun Enhanced Quantum Rifle KE Penetrator Railgun Advanced Remote Datajack [Rating: 167] Favorites ----------- Power Reinforced Fission Core Engine Improved Deuterium Engine Power Core Reinforced Fission Core Reactor Quantum Reactor Propulsion Myomer Leg Leg Myomer Leg Utility Large Storage Unit Device Weapon Cycler Storage Large Storage Unit Processor Advanced Target Analyzer Hackware System Shield Weapon Wave Gun Energy Gun Wave Gun Energy Cannon Enhanced Nova Cannon Ballistic Gun KE Penetrator Ballistic Cannon Gauss Cannon Launcher Rocket Array Slashing Weapon Greatsword Piercing Weapon Enhanced Force Lance Special Melee Weapon Improved Datajack Build | -11 -10 -9 -8 -7 -6 -6 -5 -5 -5 -5 -4 -4 -3 -2 -1 -1 ------- Run | Scr Mat Mat Mat Fac Fac Ext Fac Upp Upp War Pro Fac Res Res Acc Com Slots Evolved 18 | . . 2 2 2 2 . 2 . . . . 2 2 2 2 . Power 1 | . . . . . . . 1 . . . . . . . . . Propulsion 7 | . . 2 1 . . . 1 . . . . . 1 1 1 . Utility 9 | . . . 1 2 2 . . . . . . 2 . 1 1 . Weapon 1 | . . . . . . . . . . . . . 1 . . . Parts Attached 176 | . 2 6 5 7 3 22 11 7 3 8 1 6 17 13 35 30 Power 18 | . . . . 1 1 2 2 1 . . 1 . 1 1 4 4 Engine 3 | . . . . . . 2 1 . . . . . . . . . Core 4 | . . . . 1 1 . 1 1 . . . . . . . . Reactor 11 | . . . . . . . . . . . 1 . 1 1 4 4 Propulsion 49 | . . 2 1 1 . 9 1 1 . 6 . 2 5 4 8 9 Treads . | . . . . . . . . . . . . . . . . . Leg 49 | . . 2 1 1 . 9 1 1 . 6 . 2 5 4 8 9 Wheel . | . . . . . . . . . . . . . . . . . Hover . | . . . . . . . . . . . . . . . . . Flight . | . . . . . . . . . . . . . . . . . Utility 32 | . 1 2 1 2 2 2 5 1 . . . 2 3 4 6 1 Device 19 | . . 1 . 1 1 1 5 1 . . . 2 1 3 3 . Storage 4 | . 1 1 . . . . . . . . . . . . 2 . Processor 7 | . . . 1 1 1 . . . . . . . 1 1 1 1 Hackware 2 | . . . . . . 1 . . . . . . 1 . . . Protection . | . . . . . . . . . . . . . . . . . Artifact . | . . . . . . . . . . . . . . . . . Weapon 77 | . 1 2 3 3 . 9 3 4 3 2 . 2 8 4 17 16 Energy Gun 16 | . 1 . 1 . . . . 1 2 . . . 2 . 4 5 Energy Cannon 9 | . . . . . . . 1 1 . . . . 2 2 1 2 Ballistic Gun 14 | . . . . . . 3 . . . 1 . . 1 . 5 4 Ballistic Cannon 9 | . . 2 . 2 . 2 1 . . . . 1 1 . . . Launcher 14 | . . . 2 1 . 3 1 2 . . . . 1 1 . 3 Special Weapon . | . . . . . . . . . . . . . . . . . Impact Weapon . | . . . . . . . . . . . . . . . . . Slashing Weapon 2 | . . . . . . . . . 1 . . . . . 1 . Piercing Weapon 8 | . . . . . . . . . . . . . 1 . 5 2 Special Melee Weapon 5 | . . . . . . 1 . . . 1 . 1 . 1 1 . Unidentified Prototypes 8 | . . . 1 . . . 1 . . . . . 2 1 3 . Parts Lost 61 | . . . 1 . . 12 . 2 . . . . 3 . 11 32 Power 6 | . . . . . . 2 . . . . . . . . . 4 Propulsion 23 | . . . 1 . . 6 . 1 . . . . . . 4 11 Utility 16 | . . . . . . 4 . . . . . . 1 . 5 6 Weapon 16 | . . . . . . . . 1 . . . . 2 . 2 11 Highest Loss Streak 14 | . . . 1 . . 6 . 1 . . . . 2 . 5 14 Average Slot Usage (%) 90 | . 85 98 88 83 89 91 78 82 82 88 100 90 97 100 90 82 Engine 3 | . 14 11 9 5 . 1 6 5 5 5 2 . . . . . Core 2 | . . . . 1 6 4 . 5 5 5 5 5 1 . . . Reactor 2 | . . . . . . . . . . . 2 5 6 8 7 6 Leg 30 | . 28 44 36 33 33 29 25 22 23 23 35 31 32 34 30 26 Device 20 | . . 10 9 8 16 17 21 23 29 29 29 27 29 26 18 9 Storage 6 | . 14 11 9 7 6 6 5 5 5 5 5 5 4 4 10 11 Processor 4 | . . . 7 8 13 11 . . . . . . 1 4 4 11 Hackware 4 | . . . . . . 5 5 5 5 5 5 5 4 8 8 6 Energy Gun 3 | . 14 5 8 2 . . . 5 1 6 5 5 2 . 5 3 Energy Cannon 1 | . . . . . . . 4 4 . . . . 1 7 1 2 Ballistic Gun 2 | . 14 5 . . . 4 . . . . 5 1 3 3 1 1 Ballistic Cannon 2 | . . 10 9 7 13 5 4 . . . . 3 3 . . . Naked Turns . | . . . . . . . . . . . . . . . . . Heaviest Build 103 | 11 17 32 34 38 41 43 52 67 67 62 64 70 78 86 103 103 Greatest Support 247 | 20 20 40 40 55 55 75 83 73 73 123 123 123 158 203 233 247 Greatest Overweight (x) 2 | . . . . . . 2 . 1 . . . . . . . . Average Overweight (x) . | . . . . . . . . . . . . . . . . . Largest Inventory Capacity 10 | . 10 10 10 10 10 10 10 10 10 10 10 10 10 10 10 10 Average Capacity 9 | . 7 9 10 10 10 10 10 10 10 10 10 10 10 10 10 9 Most Carried 10 | . 7 9 10 10 10 10 10 10 10 10 10 10 10 10 10 10 Average Carried 9 | . 6 6 8 9 9 9 9 9 9 9 10 10 9 9 9 7 Final Capacity 10 | 6 8 10 10 10 10 10 10 10 10 10 10 10 10 10 10 4 Final Carried 10 | 6 7 9 8 10 10 9 10 9 9 10 10 10 10 10 9 3 Class Distribution -------------------- 55% | Scavenger-Mutant 18% | Mutant 13% | Scavenger-Skirmisher 4% | Hacker-Skirmisher 4% | Skirmisher Dominant Class ---------------- Mutant | -10/Materials Mutant | -9/Materials Mutant | -8/Materials Mutant | -7/Factory Skirmisher | -6/Factory Hacker-Skirmisher | -6/Extension Scavenger-Mutant | -5/Factory Scavenger-Mutant | -5/Upper Caves Scavenger-Mutant | -5/Upper Caves Scavenger-Mutant | -5/Warlord Scavenger-Mutant | -4/Proximity Caves Scavenger-Mutant | -4/Factory Scavenger-Skirmisher | -3/Research Scavenger-Skirmisher | -2/Research Scavenger-Mutant | -1/Access Scavenger-Mutant | -1/Command Resources | -11 -10 -9 -8 -7 -6 -6 -5 -5 -5 -5 -4 -4 -3 -2 -1 -1 ----------- Run | Scr Mat Mat Mat Fac Fac Ext Fac Upp Upp War Pro Fac Res Res Acc Com Matter Collected 5238 | 200 31 159 173 254 129 1029 239 151 40 60 110 208 419 343 925 768 Remotely . | . . . . . . . . . . . . . . . . . Salvage Created 8405 | . 182 262 363 330 29 1306 369 398 249 . 136 161 618 641 1216 2145 Parts 417 | . 5 22 17 16 5 55 18 13 18 . 8 4 36 23 74 103 Haulers Intercepted . | . . . . . . . . . . . . . . . . . Recyclers Shooed 8 | . . . . 1 . 2 1 . . . . . . 1 . 3 Parts Field Recycled . | . . . . . . . . . . . . . . . . . Retrieved Matter . | . . . . . . . . . . . . . . . . . Parts Self-Destructed 144 | . . . . . . . . 5 14 107 18 . . . . . Prevented 11 | . . . . . . . . 4 2 4 1 . . . . . Kills | -11 -10 -9 -8 -7 -6 -6 -5 -5 -5 -5 -4 -4 -3 -2 -1 -1 ------- Run | Scr Mat Mat Mat Fac Fac Ext Fac Upp Upp War Pro Fac Res Res Acc Com Combat Hostiles Destroyed 130 | . 3 8 9 2 1 17 8 7 7 . 2 4 8 10 13 31 Melee 13 | . . . . . . . . . 2 . . . . . 5 6 Guns 37 | . 3 4 3 . . 4 . 1 4 . 2 . 1 2 4 9 Cannons 50 | . . 4 6 1 1 5 4 4 . . . 4 7 7 2 5 AOE 25 | . . . . 1 . 8 4 2 . . . . . . . 10 Classes Destroyed 15 | . 2 3 1 1 1 5 . . . . . . . 1 1 . Worker 14 | . . . 1 6 . 4 1 . . . . . . . 1 1 Builder 7 | . . . . . . 4 . . . . . . 2 . 1 . Tunneler 2 | . . . . . . 2 . . . . . . . . . . Recycler 13 | . 1 . 1 2 . 4 1 . . . . . 1 1 1 1 Operator 2 | . . . . . . 1 . . . . . . . . . 1 Watcher 11 | . . 3 . 2 . 3 1 . . . . . . . 2 . Swarmer 31 | . . 4 4 . . 4 5 . 4 . . 1 . 4 1 4 Grunt 38 | . 3 1 1 . . 9 . 2 2 . 2 2 1 3 2 10 Brawler 2 | . . . . . . . . 2 . . . . . . . . Duelist 2 | . . . . . . . . . . . . . . . 1 1 Sentry 20 | . . 3 4 1 . 2 . 1 1 . . . 1 2 3 2 Hunter 10 | . . . . 1 . . . 2 . . . 1 2 . . 4 Programmer 24 | . . . . . 1 . 3 . . . . . 4 . 6 10 Behemoth 2 | . . . . . . 2 . . . . . . . . . . Striker 1 | . . . . . . . . . . . . . . 1 . . Thug 1 | . . . . . . 1 . . . . . . . . . . Savage 1 | . . . . . . 1 . . . . . . . . . . Guerrilla 1 | . . . . . . 1 . . . . . . . . . . Best Kill Streak 10 | . 4 4 7 4 1 10 5 3 3 . 2 4 6 5 3 8 Combat Bots Only 8 | . 3 4 5 1 1 4 5 3 3 . 2 4 5 4 2 8 Max Kills in Single Turn 4 | . 1 1 2 4 1 4 4 2 1 . 1 1 1 2 1 2 Gunslinging 1 | . . . . . . . . . . . . . . . . 1 Exploded 4 | . . . . 1 . 2 4 2 . . . . . . . 2 Melee 1 | . . . . . . . . . 1 . . . . . 1 1 Uniques/NPCs Destroyed . | . . . . . . . . . . . . . . . . . Combat | -11 -10 -9 -8 -7 -6 -6 -5 -5 -5 -5 -4 -4 -3 -2 -1 -1 -------- Run | Scr Mat Mat Mat Fac Fac Ext Fac Upp Upp War Pro Fac Res Res Acc Com Damage Taken 11622 | . 171 171 178 200 68 1724 242 389 309 52 362 224 498 279 1306 5449 Core 2414 | . 37 11 59 20 6 368 26 78 . . 66 38 38 51 56 1560 Absorbed by Shields 2127 | . . . . . . . . . . . 294 106 414 237 532 544 Core Remaining (%) 89 | 100 85 97 89 97 . 56 . . . . 83 96 97 96 . . Volleys Fired 382 | . 11 19 24 13 6 59 20 15 7 . 20 27 34 26 26 75 Largest 3 | . 2 2 2 2 2 2 2 2 2 . 2 2 3 3 3 3 Hottest 315 | . 85 88 113 93 92 93 146 158 146 . 114 138 188 247 247 315 Shots Fired 806 | . 22 38 48 23 12 116 37 30 14 . 31 46 90 70 75 154 Gun 423 | . 22 16 20 . . 40 . 14 14 . 31 21 45 22 63 115 Cannon 338 | . . 22 28 19 12 56 36 14 . . . 25 45 44 12 25 Launcher 45 | . . . . 4 . 20 1 2 . . . . . 4 . 14 Special . | . . . . . . . . . . . . . . . . . Kinetic 415 | . 11 30 28 19 12 96 16 . . . 20 27 67 22 26 41 Thermal 235 | . 11 8 20 . . . 20 14 7 . 11 19 18 22 26 59 Explosive 45 | . . . . 4 . 20 1 2 . . . . . 4 . 14 Electromagnetic 111 | . . . . . . . . 14 7 . . . 5 22 23 40 Robot Hit Streak 34 | . 15 21 9 9 13 22 16 24 10 . 13 10 10 21 34 23 Robot Miss Streak 7 | . 1 2 2 2 1 7 3 1 4 . 1 2 3 3 2 2 Penetration Max 1 | . . . . . . 1 . . . . . . 1 1 1 1 Secondary Targets 2 | . . . . . . . . . . . 1 . . . . 1 Max Gunslinging Chain 1 | . . . . . . . . . . . 1 . . . . 1 Shots Hit Robots 654 | . 19 21 35 18 11 86 30 25 15 19 27 32 54 45 76 141 Core Hits 384 | . 10 13 15 24 3 110 16 24 7 . 7 8 23 20 33 71 Critical Hits 66 | . . . 1 1 . 24 1 1 1 . 2 . 5 9 6 15 Critical Kills 30 | . . . 1 1 . 12 . 1 . . . . 2 2 5 6 Critical Parts Destroyed 29 | . . . . . . 11 1 . 1 . 1 . 2 3 1 9 Melee Attacks 105 | . . . . . . 7 . . 13 19 . 1 1 1 44 19 Impact . | . . . . . . . . . . . . . . . . . Slashing 13 | . . . . . . . . . 13 . . . . . . . Piercing 62 | . . . . . . . . . . . . . 1 . 42 19 Sneak Attacks 28 | . . . . . . 7 . . . 18 . . . . 3 . Combat Hostiles . | . . . . . . . . . . . . . . . . . Follow-up Attacks . | . . . . . . . . . . . . . . . . . Damage Inflicted 23429 | . 203 483 748 908 315 4133 1153 1219 562 . 713 843 1659 1637 2608 6245 Guns 6404 | . 203 117 284 . . 225 . 264 151 . 713 336 663 294 1124 2030 Cannons 8003 | . . 366 458 350 315 962 920 390 . . . 507 996 1303 468 968 Explosions 6804 | . . . . 556 . 2946 233 565 . . . . . 40 . 2464 Melee 2210 | . . . . . . . . . 411 . . . . . 1016 783 Ramming 8 | . . . 6 2 . . . . . . . . . . . . Kinetic 6730 | . 72 378 458 350 315 1187 324 . . . 444 533 1128 294 428 819 Thermal 5788 | . 131 105 284 . . . 596 390 47 . 269 310 443 729 761 1723 Explosive 6804 | . . . . 556 . 2946 233 565 . . . . . 40 . 2464 Electromagnetic 1889 | . . . . . . . . 264 104 . . . 88 574 403 456 Impact . | . . . . . . . . . . . . . . . . . Slashing 411 | . . . . . . . . . 411 . . . . . . . Piercing 1799 | . . . . . . . . . . . . . . . 1016 783 Highest Corruption 31 | . . . . . 1 8 1 1 1 2 . . 9 . 9 31 Average Corruption 4 | . . . . . 1 2 1 1 1 1 . . 8 . 1 14 Corruption Purged . | . . . . . . . . . . . . . . . . . Effects 131 | . . . . . . 12 2 3 4 1 . . 17 . 8 84 Message Errors 23 | . . . . . . 3 1 2 3 1 . . 4 . 2 7 Matter Fused 19 | . . . . . . 1 . . . . . . 1 . 1 16 Heat Flow Errors 8 | . . . . . . 1 . . . . . . . . 1 6 Energy Discharges 11 | . . . . . . 1 . 1 1 . . . 2 . 1 5 Parts Rejected 1 | . . . . . . . . . . . . . . . . 1 Data Loss (minor) 2 | . . . . . . . . . . . . . . . 1 1 Data Loss (major) 8 | . . . . . . 1 . . . . . . 1 . . 6 Misfires 3 | . . . . . . . . . . . . . 2 . . 1 Alerts 1 | . . . . . . . . . . . . . . . . 1 Misdirections 9 | . . . . . . . . . . . . . . . . 9 Targeting Errors 35 | . . . . . . 4 1 . . . . . 5 . 2 23 Weapon Failures 11 | . . . . . . 1 . . . . . . 2 . . 8 Overload Shots . | . . . . . . . . . . . . . . . . . Overflow Damage 398 | . . 7 . . . 63 32 19 . . . . 23 68 78 108 Projectiles 288 | . . 7 . . . 56 32 19 . . . . 23 68 78 5 Explosions 99 | . . . . . . 7 . . . . . . . . . 92 Melee 11 | . . . . . . . . . . . . . . . . 11 Knockbacks 23 | . . 1 . 3 1 13 5 . . . . . . . . . Impact . | . . . . . . . . . . . . . . . . . Kinetic 21 | . . 1 . 3 1 11 5 . . . . . . . . . Secondary 2 | . . . . . . 2 . . . . . . . . . . Self-Inflicted Damage 242 | . . . . 57 . 78 . 37 . . . . . . . 70 Shots 15 | . . . . 4 . 5 . 2 . . . . . . . 4 Rammed . | . . . . . . . . . . . . . . . . . Targets Rammed 2 | . . . 1 1 . . . . . . . . . . . . Kicked 2 | . . . 1 1 . . . . . . . . . . . . Crushed . | . . . . . . . . . . . . . . . . . Highest Temperature 236 | . 126 153 236 63 57 169 169 198 181 . 192 195 195 196 196 198 Average Temperature 85 | . 58 57 81 23 23 34 65 103 92 . 97 103 96 117 99 104 Received Heat Transfer 1344 | . 126 51 54 54 18 417 . 45 63 . 74 53 . 49 53 287 Siege Activations . | . . . . . . . . . . . . . . . . . Robots Corrupted 3 | . . . . . . . . . . . . . . 1 1 1 Combat Hostiles 3 | . . . . . . . . . . . . . . 1 1 1 Parts Fried 9 | . . . . . . . . 2 . . . . . 1 3 3 Impact Corruptions . | . . . . . . . . . . . . . . . . . Robots Melted 1 | . . . . . . . . . . . . . . . 1 . Combat Hostiles 1 | . . . . . . . . . . . . . . . 1 . Parts Melted 14 | . . . 4 . . . . . . . . . . 1 1 8 Heat Transferred 6761 | . 286 259 555 . . . 592 407 74 . 407 481 518 629 740 1813 Parts Sabotaged . | . . . . . . . . . . . . . . . . . Parts Stolen . | . . . . . . . . . . . . . . . . . Parts Stripped . | . . . . . . . . . . . . . . . . . Power Chain Reactions . | . . . . . . . . . . . . . . . . . Missiles Intercepted . | . . . . . . . . . . . . . . . . . Alert | -11 -10 -9 -8 -7 -6 -6 -5 -5 -5 -5 -4 -4 -3 -2 -1 -1 ------- Run | Scr Mat Mat Mat Fac Fac Ext Fac Upp Upp War Pro Fac Res Res Acc Com Peak Influence 762 | . 145 229 179 270 573 762 245 . . . . 399 506 419 251 616 Initial 245 | . . 52 47 29 65 241 245 . . . . . 181 186 156 1 Average 210 | . 81 122 82 113 279 405 150 . . . . 206 300 255 126 288 Maximum Alert Level 3 | . . 1 . 1 2 3 1 . . . . 1 2 2 1 2 Low Security (%) 53 | . 100 84 100 74 57 . 48 . . . . 41 15 49 77 33 Level 1 36 | . . 15 . 25 . 53 51 . . . . 58 71 50 22 51 Level 2 9 | . . . . . 42 41 . . . . . . 13 . . 15 Level 3 . | . . . . . . 4 . . . . . . . . . . Level 4 . | . . . . . . . . . . . . . . . . . Level 5 . | . . . . . . . . . . . . . . . . . High Security . | . . . . . . . . . . . . . . . . . Max Security . | . . . . . . . . . . . . . . . . . Squads Dispatched 18 | . . . . 1 1 4 . . . . . 1 3 . 4 4 Investigation 2 | . . . . . . 2 . . . . . . . . . . Extermination 9 | . . . . . 1 . . . . . . 1 2 . 3 2 Reinforcement 7 | . . . . 1 . 2 . . . . . . 1 . 1 2 Assault . | . . . . . . . . . . . . . . . . . Garrison . | . . . . . . . . . . . . . . . . . Intercept . | . . . . . . . . . . . . . . . . . Construction Impeded 2 | . . . . . . 2 . . . . . . . . . . Haulers Reinforced 1 | . . . . . . . . . . . . . 1 . . . Stealth | -11 -10 -9 -8 -7 -6 -6 -5 -5 -5 -5 -4 -4 -3 -2 -1 -1 --------- Run | Scr Mat Mat Mat Fac Fac Ext Fac Upp Upp War Pro Fac Res Res Acc Com Distress Signals 10 | . . 1 . . . 1 . . . . . . 1 6 1 . Communications Jammed 51 | . . . . . . . 1 . . . . . 1 1 48 . Distress Signals 50 | . . . . . . . . . . . . . 1 1 48 . Times Spotted 217 | . 7 11 14 6 3 32 8 8 10 . 5 10 16 14 23 50 Peak Tracking Total 10 | . 6 4 3 2 2 5 5 3 5 . 4 3 5 5 4 10 Tactical Retreats 12 | . 1 . 1 . . 4 . 1 1 . . . . . 3 1 Traps | -11 -10 -9 -8 -7 -6 -6 -5 -5 -5 -5 -4 -4 -3 -2 -1 -1 ------- Run | Scr Mat Mat Mat Fac Fac Ext Fac Upp Upp War Pro Fac Res Res Acc Com Traps Triggered 9 | . . . . . . 1 . . . 1 . 1 . . 3 3 Indirectly . | . . . . . . . . . . . . . . . . . Trap Hack Attempts . | . . . . . . . . . . . . . . . . . Triggered . | . . . . . . . . . . . . . . . . . Disarmed 6 | . . . . . . 6 . . . . . . . . . . Reprogrammed . | . . . . . . . . . . . . . . . . . Reused . | . . . . . . . . . . . . . . . . . Traps Extracted . | . . . . . . . . . . . . . . . . . Installed . | . . . . . . . . . . . . . . . . . Triggered 5 | . . . . . . . . . . 5 . . . . . . Machines | -11 -10 -9 -8 -7 -6 -6 -5 -5 -5 -5 -4 -4 -3 -2 -1 -1 ---------- Run | Scr Mat Mat Mat Fac Fac Ext Fac Upp Upp War Pro Fac Res Res Acc Com Machines Disabled 17 | . . . . 6 . 4 . . . . . 4 2 1 . . Max in Single Turn 6 | . . . . 6 . 1 . . . . . . . 1 . . Machines Sabotaged . | . . . . . . . . . . . . . . . . . Garrisons Compromised . | . . . . . . . . . . . . . . . . . Overloaded Fab Kills . | . . . . . . . . . . . . . . . . . Fab Network Shutdowns 1 | . . . . . 1 . . . . . . . . . . . Hacking | -11 -10 -9 -8 -7 -6 -6 -5 -5 -5 -5 -4 -4 -3 -2 -1 -1 --------- Run | Scr Mat Mat Mat Fac Fac Ext Fac Upp Upp War Pro Fac Res Res Acc Com Machines Accessed 24 | . . 1 . 2 2 7 2 . . 3 . . . 1 4 2 Terminals 15 | . . 1 . . 1 7 1 . . . . . . . 3 2 Fabricators 5 | . . . . 2 1 . . . . . . . . 1 1 . Repair Stations 1 | . . . . . . . 1 . . . . . . . . . Recycling Units . | . . . . . . . . . . . . . . . . . Scanalyzers . | . . . . . . . . . . . . . . . . . Garrison Access . | . . . . . . . . . . . . . . . . . Total Hacks 44 | . . 2 . 2 3 13 5 . . 9 . . . 1 6 3 Successful 28 | . . 1 . 2 2 6 2 . . 9 . . . . 4 2 Failed 16 | . . 1 . . 1 7 3 . . . . . . 1 2 1 Catastrophic 2 | . . . . . . 1 1 . . . . . . . . . Database Lockouts . | . . . . . . . . . . . . . . . . . Manual 4 | . . . . . . . . . . 3 . . . . 1 . Terminals 27 | . . 2 . . 1 13 3 . . . . . . . 5 3 Fabricators 6 | . . . . 2 2 . . . . . . . . 1 1 . Repair Stations 2 | . . . . . . . 2 . . . . . . . . . Recycling Units . | . . . . . . . . . . . . . . . . . Scanalyzers . | . . . . . . . . . . . . . . . . . Garrison Access . | . . . . . . . . . . . . . . . . . Terminal Hacks 23 | . . 1 . . 1 6 1 . . 9 . . . . 3 2 Record 9 | . . . . . . . . . . 9 . . . . . . Open Door 7 | . . . . . 1 3 . . . . . . . . 3 . Unreport Threat 1 | . . . . . . . 1 . . . . . . . . . Locate Traps 2 | . . . . . . 1 . . . . . . . . . 1 Disarm Traps 1 | . . . . . . 1 . . . . . . . . . . Hauler Manifests 1 | . . . . . . 1 . . . . . . . . . . Registered Prototypes 1 | . . . . . . . . . . . . . . . . 1 Zone Layout 1 | . . 1 . . . . . . . . . . . . . . Fabricator Hacks 4 | . . . . 2 1 . . . . . . . . . 1 . Network Status 2 | . . . . 1 . . . . . . . . . . 1 . Build 2 | . . . . 1 1 . . . . . . . . . . . Repair Station Hacks 1 | . . . . . . . 1 . . . . . . . . . Scan Component 1 | . . . . . . . 1 . . . . . . . . . Recycling Unit Hacks . | . . . . . . . . . . . . . . . . . Scanalyzer . | . . . . . . . . . . . . . . . . . Garrison Access Hacks . | . . . . . . . . . . . . . . . . . Unauthorized Hacks . | . . . . . . . . . . . . . . . . . Terminals . | . . . . . . . . . . . . . . . . . Fabricators . | . . . . . . . . . . . . . . . . . Repair Stations . | . . . . . . . . . . . . . . . . . Recycling Units . | . . . . . . . . . . . . . . . . . Scanalyzers . | . . . . . . . . . . . . . . . . . Garrison Access . | . . . . . . . . . . . . . . . . . Data Cores Recovered 1 | . . . . . . 1 . . . . . . . . . . Used . | . . . . . . . . . . . . . . . . . Hacking Detections 11 | . . . . . 1 5 1 . . . . . . 1 2 1 Full Trace Events 2 | . . . . . . 2 . . . . . . . . . . Feedback Events . | . . . . . . . . . . . . . . . . . Feedback Blocked . | . . . . . . . . . . . . . . . . . Robot Schematics Acquired . | . . . . . . . . . . . . . . . . . Robots Built 3 | . . . . . 3 . . . . . . . . . . . Matter 252 | . . . . . 252 . . . . . . . . . . . Time 67 | . . . . . 67 . . . . . . . . . . . Total Robot Build Rating 12 | . . . . . 12 . . . . . . . . . . . Part Schematics Acquired . | . . . . . . . . . . . . . . . . . Parts Built 2 | . . . . 2 . . . . . . . . . . . . Matter 168 | . . . . 168 . . . . . . . . . . . . Time 42 | . . . . 42 . . . . . . . . . . . . Total Part Build Rating 8 | . . . . 8 . . . . . . . . . . . . Parts Repaired . | . . . . . . . . . . . . . . . . . Time . | . . . . . . . . . . . . . . . . . Parts Recycled . | . . . . . . . . . . . . . . . . . Recycled Matter . | . . . . . . . . . . . . . . . . . Retrieved Matter . | . . . . . . . . . . . . . . . . . Retrieved Components . | . . . . . . . . . . . . . . . . . Parts Scanalyzed . | . . . . . . . . . . . . . . . . . Part Schematics Acquired . | . . . . . . . . . . . . . . . . . Parts Damaged . | . . . . . . . . . . . . . . . . . Bothacking | -11 -10 -9 -8 -7 -6 -6 -5 -5 -5 -5 -4 -4 -3 -2 -1 -1 ------------ Run | Scr Mat Mat Mat Fac Fac Ext Fac Upp Upp War Pro Fac Res Res Acc Com Used RIF Installer . | . . . . . . . . . . . . . . . . . Robots Hacked 3 | . . . . . . . . . . . . 1 . 1 1 . Non-combat 1 | . . . . . . . . . . . . . . . 1 . Combat . | . . . . . . . . . . . . . . . . . Robot Hacks Applied 1 | . . . . . . . . . . . . . . . 1 . find_recycling 1 | . . . . . . . . . . . . . . . 1 . Manual 2 | . . . . . . . . . . . . 1 . 1 . . Relay Couplers Released 3 | . . . . . . . . . . . . . . 3 . . Programmers 3 | . . . . . . . . . . . . . . 3 . . Robots Rewired 8 | . . . . . . 3 . . . 5 . . . . . . Allies Hacked 3 | . . . . . . . . . . . . . 3 . . . Hacks Repelled . | . . . . . . . . . . . . . . . . . Allies | -11 -10 -9 -8 -7 -6 -6 -5 -5 -5 -5 -4 -4 -3 -2 -1 -1 -------- Run | Scr Mat Mat Mat Fac Fac Ext Fac Upp Upp War Pro Fac Res Res Acc Com Total Allies 15 | . . . . . 3 5 . . . 5 . 1 . 1 . . Largest Group 6 | . . . . . 3 5 . . . 5 5 6 3 3 1 . Highest-Rated Group 363 | . . . . . 90 133 . . . 248 248 363 235 235 60 . Highest-Rated Ally 147 | . . . . . 30 37 . . . 60 60 115 115 147 60 . Total Orders . | . . . . . . . . . . . . . . . . . Ally Attacks 128 | . . . . . 10 39 . . . . 22 31 16 10 . . Total Damage 4736 | . . . . . 282 657 . . . . 712 1624 893 568 . . Kills 35 | . . . . . 2 9 . . . . 3 8 7 6 . . Allies Corrupted 2 | . . . . . 1 . . . . . . . . 1 . . Allies Melted . | . . . . . . . . . . . . . . . . . Intel | -11 -10 -9 -8 -7 -6 -6 -5 -5 -5 -5 -4 -4 -3 -2 -1 -1 ------- Run | Scr Mat Mat Mat Fac Fac Ext Fac Upp Upp War Pro Fac Res Res Acc Com Robot Analysis Total . | . . . . . . . . . . . . . . . . . Derelict Logs Recovered 3 | . . . . . . . . 1 . . 2 . . . . . Drone Launches . | . . . . . . . . . . . . . . . . . Drone Recoveries . | . . . . . . . . . . . . . . . . . Exploration | -11 -10 -9 -8 -7 -6 -6 -5 -5 -5 -5 -4 -4 -3 -2 -1 -1 ------------- Run | Scr Mat Mat Mat Fac Fac Ext Fac Upp Upp War Pro Fac Res Res Acc Com Turns Passed 11504 | . 243 463 826 605 350 936 629 416 569 1251 1113 314 554 945 1244 1046 Spaces Moved 7222 | 1 166 317 447 408 206 551 412 300 385 983 629 202 330 656 690 539 Core 42 | . . . . . . . . . . . . . . . . 42 Treads . | . . . . . . . . . . . . . . . . . Legs 7180 | 1 166 317 447 408 206 551 412 300 385 983 629 202 330 656 690 497 Wheels . | . . . . . . . . . . . . . . . . . Hover . | . . . . . . . . . . . . . . . . . Flight . | . . . . . . . . . . . . . . . . . Fastest Speed 50 | 120 120 120 120 120 120 120 120 120 120 120 120 120 120 118 117 50 Average Speed 119 | 120 120 120 120 120 120 122 120 120 120 120 120 120 120 119 117 110 Slowest Speed 180 | 120 120 120 120 120 120 180 120 150 120 120 120 120 120 120 120 120 Overloaded Moves . | . . . . . . . . . . . . . . . . . Propulsion Burnouts . | . . . . . . . . . . . . . . . . . Robots Hopped . | . . . . . . . . . . . . . . . . . Cave-ins Triggered 3 | . . . . . . 2 . . . . . . . . . 1 Exploration Rate (%) 34 | 2 41 43 57 20 7 48 10 48 58 87 77 6 11 23 17 23 Regions Visited 16 Branch Regions 6 Pre-discovered Areas 1 | . . . . . . . . . . 1 . . . . . . Known Exits Taken 3 | . . . . . . . . 1 . . . . 1 . 1 . Unknown Exits Taken 13 | 1 1 1 1 1 1 1 1 . 1 1 1 1 . 1 . . Scrap Searched 3 | . . . . . . . . 1 2 . . . . . . . Spaces Dug 40 | . . . . . . . . . 5 . . 3 2 20 8 2 Terrain Destroyed 707 | . . 3 3 131 . 241 7 40 5 . . 9 12 99 9 148 Melee 16 | . . . . . . . . . 5 . . . 1 . 8 2 Projectile 66 | . . 3 3 2 . 15 7 2 . . . 9 11 6 1 7 AOE 625 | . . . . 129 . 226 . 38 . . . . . 93 . 139 Terrain Rammed . | . . . . . . . . . . . . . . . . . Walls Destroyed . | . . . . . . . . . . . . . . . . . Machines Disabled . | . . . . . . . . . . . . . . . . . Actions | -11 -10 -9 -8 -7 -6 -6 -5 -5 -5 -5 -4 -4 -3 -2 -1 -1 --------- Run | Scr Mat Mat Mat Fac Fac Ext Fac Upp Upp War Pro Fac Res Res Acc Com Total 9293 | . 191 363 689 493 300 701 522 329 459 1046 965 241 430 778 975 811 Wait 1214 | . 5 11 205 61 82 37 64 5 43 28 315 1 28 62 162 105 Move 7206 | . 165 316 446 407 205 550 411 299 384 982 628 201 329 655 689 539 Hop . | . . . . . . . . . . . . . . . . . Pick Up 96 | . 4 8 4 3 2 11 7 2 4 3 . 1 12 8 12 15 Fast Attach 39 | . 1 . 1 3 . 5 5 . . 2 1 2 3 3 10 3 Attach 61 | . . 3 2 . 2 6 3 3 3 . . . 8 2 9 20 Detach 1 | . . . . . . . . . 1 . . . . . . . Swap 76 | . 1 3 2 4 1 11 3 4 . 6 . 4 6 8 16 7 Drop 87 | . 4 3 4 1 2 10 9 1 4 6 1 4 9 13 7 9 Fire 382 | . 11 19 24 13 6 59 20 15 7 . 20 27 34 26 26 75 Melee 105 | . . . . . . 7 . . 13 19 . 1 1 1 44 19 Ram . | . . . . . . . . . . . . . . . . . Kick 2 | . . . 1 1 . . . . . . . . . . . . Crush . | . . . . . . . . . . . . . . . . . Escape Stasis 24 | . . . . . . 5 . . . . . . . . . 19 Rewire . | . . . . . . . . . . . . . . . . . Trap . | . . . . . . . . . . . . . . . . . Miscellaneous . | . . . . . . . . . . . . . . . . . Route ------- -11/Scrapyard -10/Materials (discovered 2 exits: *Mat / [*Min]) -9/Materials -8/Materials -7/Factory -6/Factory (discovered 2 exits: *Fac / *Ext) -6/Extension -5/Factory -5/Upper Caves -5/Upper Caves (discovered 2 exits: [*Fac] / *War) -5/Warlord -4/Proximity Caves -4/Factory -3/Research (discovered 4 exits: *Res x2 / Tes x2) -2/Research -1/Access -1/Command (discovered 1 exit: [Sur]) History --------- Turn | Location | Event 1 | -11/Scrapyard | Discovered new exit (range 0) 1 | -11/Scrapyard | Entered Materials 68 | -10/Materials | Discovered new exit (range 10) 224 | -10/Materials | Discovered new exit (range 16) 244 | -10/Materials | Entered another Materials area 244 | -9/Materials | Evolved 2 slots: Propulsion x2 307 | -9/Materials | Build established: Mutant 699 | -9/Materials | Discovered new exit (range 7) 707 | -9/Materials | Entered another Materials area 707 | -8/Materials | Evolved 2 slots: Propulsion x1, Utility x1 769 | -8/Materials | Found Prototype Launcher 770 | -8/Materials | Identified Rocket Array 773 | -8/Materials | Found Rocket Array 777 | -8/Materials | Found Rocket Array 1515 | -8/Materials | Discovered new exit (range 9) 1533 | -8/Materials | Entered Factory 1533 | -7/Factory | Evolved 2 slots: Utility x2 2085 | -7/Factory | Fabricated Weapon Cycler (x2) 2108 | -7/Factory | Discovered new exit (range 15) 2138 | -7/Factory | Entered another Factory area 2138 | -6/Factory | Evolved 2 slots: Utility x2 2262 | -6/Factory | Fabricated L-41 Fighter? 2338 | -6/Factory | Local fabrication network quarantined 2373 | -6/Factory | Discovered new exit (range 12) 2408 | -6/Factory | Build established: Skirmisher 2443 | -6/Factory | Discovered new exit (range 14) 2488 | -6/Factory | Entered Extension 2488 | -6/Extension | Accompanied by 2 allies 2934 | -6/Extension | Build established: Hacker-Skirmisher 2948 | -6/Extension | Rescued a captive Derelict 3035 | -6/Extension | Rescued a captive Derelict 3123 | -6/Extension | Spotted B-75 Beast 3131 | -6/Extension | Spotted B-75 Beast 3134 | -6/Extension | Crushed by falling debris 3138 | -6/Extension | Disrupted transfer network 3154 | -6/Extension | Destroyed B-75 Beast 3162 | -6/Extension | Destroyed B-75 Beast 3180 | -6/Extension | Lost 4 parts (1p2n1u) 3310 | -6/Extension | Crushed by falling debris 3358 | -6/Extension | Lost 6 parts (3n3u) 3419 | -6/Extension | Discovered new exit (range 3) 3424 | -6/Extension | Entered Factory 3424 | -5/Factory | Evolved 2 slots: Power x1, Propulsion x1 3664 | -5/Factory | Build established: Scavenger-Mutant 3911 | -5/Factory | Discovered new exit (range 7) 4053 | -5/Factory | Entered Upper Caves 4117 | -5/Upper Caves | Identified exit to Upper Caves 4218 | -5/Upper Caves | Attracted the attention of an 0b10 checkpoint 4469 | -5/Upper Caves | Entered another Upper Caves area 4522 | -5/Upper Caves | Attracted the attention of an 0b10 checkpoint 4684 | -5/Upper Caves | Discovered new exit (range 11) 4921 | -5/Upper Caves | Discovered new exit (range 14) 5038 | -5/Upper Caves | Entered Warlord 5151 | -5/Warlord | Discovered new exit (range 8) 5222 | -5/Warlord | System corruption cleaned by Quarantine Array 5436 | -5/Warlord | Received a Watcher feed algorithm from an ecstatic Tinkerer 5679 | -5/Warlord | Met Warlord 5704 | -5/Warlord | Warlord's base attacked by MAIN.C 5823 | -5/Warlord | Learned Armory security intel 5823 | -5/Warlord | Learned Quarantine security intel 5823 | -5/Warlord | Learned Research fabricator intel 5823 | -5/Warlord | Learned Armory terminal intel 5823 | -5/Warlord | Learned Research emergency access door positions 5823 | -5/Warlord | Learned location of Testing (-3) 5823 | -5/Warlord | Learned Testing emergency access door positions 5823 | -5/Warlord | Learned Armory stockpile data 6054 | -5/Warlord | Warlord forces counterattacked 6289 | -5/Warlord | Entered Proximity Caves 6289 | -4/Proximity Caves | Accompanied by 5 allies 6300 | -4/Proximity Caves | Spotted B-86 Titan 6316 | -4/Proximity Caves | Allies destroyed B-86 Titan 6673 | -4/Proximity Caves | Learned 4 Research zone layouts 6766 | -4/Proximity Caves | Learned Research machine intel 7051 | -4/Proximity Caves | Discovered new exit (range 5) 7283 | -4/Proximity Caves | Received a Behemoth hack from an annoying Tinkerer 7402 | -4/Proximity Caves | Entered Factory 7402 | -4/Factory | Accompanied by 5 allies 7402 | -4/Factory | Evolved 2 slots: Utility x2 7494 | -4/Factory | Spotted B-86 Titan 7500 | -4/Factory | Befriended a Behemoth using the annoying Tinkerer's hack 7668 | -4/Factory | Discovered new exit (range 14) 7716 | -4/Factory | Entered Research 7716 | -3/Research | Accompanied by 3 allies 7716 | -3/Research | Evolved 2 slots: Propulsion x1, Weapon x1 7717 | -3/Research | Identified exit to Testing 7718 | -3/Research | Identified exit to Research 7720 | -3/Research | Loaded intel: 137 machine locations 7721 | -3/Research | Loaded intel: 4 fabricator locations 7942 | -3/Research | Found Enh. Force Lance 8158 | -3/Research | Discovered exit to Research (range 15) 8270 | -3/Research | Entered another Research area 8270 | -2/Research | Accompanied by 3 allies 8270 | -2/Research | Warlord forces began assault on 0b10 8270 | -2/Research | Evolved 2 slots: Propulsion x1, Utility x1 8380 | -2/Research | Research machine network offline 8406 | -2/Research | Build established: Scavenger-Skirmisher 8687 | -2/Research | Borebot progress halted 8856 | -2/Research | Borebot progress halted 8889 | -2/Research | Borebot progress halted 8904 | -2/Research | Found Prototype Processor 8904 | -2/Research | Identified Spectral Analyzer 8976 | -2/Research | Spotted Striker 8988 | -2/Research | Destroyed Striker 9049 | -2/Research | Discovered new exit (range 7) 9099 | -2/Research | Spotted B-90 Cyclops 9110 | -2/Research | Befriended a Behemoth using the annoying Tinkerer's hack 9215 | -2/Research | Entered Access 9215 | -1/Access | Accompanied by 1 ally 9215 | -1/Access | Evolved 2 slots: Propulsion x1, Utility x1 9419 | -1/Access | Spotted B-99 Colossus 9476 | -1/Access | Lost 5 parts (2n2u1w) 9535 | -1/Access | Spotted B-99 Colossus 9612 | -1/Access | Build established: Scavenger-Mutant 10246 | -1/Access | Found Prototype Slashing Weapon 10402 | -1/Access | Discovered new exit (range 8) 10409 | -1/Access | Identified exit to Command 10410 | -1/Access | Identified Vibroblade 10459 | -1/Access | Entered Command 10875 | -1/Command | System corruption reached 10% 11097 | -1/Command | Discovered new exit (range 20) 11286 | -1/Command | Lost 14 parts (2p6n1u5w) 11435 | -1/Command | Spotted Striker 11437 | -1/Command | Spotted Executioner 11438 | -1/Command | Spotted Alpha 7 11438 | -1/Command | Spotted Alpha 7 11439 | -1/Command | Spotted Executioner 11442 | -1/Command | Crushed by falling debris 11442 | -1/Command | System corruption reached 30% 11442 | -1/Command | Spotted Striker 11448 | -1/Command | Destroyed 8 combat bots 11448 | -1/Command | Spotted Executioner 11476 | -1/Command | Core integrity fell below 50% 11478 | -1/Command | Spotted B-99 Colossus 11484 | -1/Command | Spotted Executioner 11491 | -1/Command | Core integrity fell below 20% 11502 | -1/Command | Spotted B-99 Colossus 11503 | -1/Command | Lost 12 parts (1p4n4u3w) 11505 | -1/Command | Destroyed by B-99 Colossus with Linear Accelerator Last Messages --------------- 11493_ Field strength at 63. 11494_ Field strength at 57. 11495_ Field strength at 44. 11496_ Field strength at 38. 11497_ Field strength at 32. 11498_ Field strength at 7. 11499_ Field strength at 1. 11500_ Stasis field depleted. 11501_ Triggered Stasis Trap. 11501_ A bubble of rippling energy engulfs the area. 11501_ Field strength at 94. 11501_ Field strength at 88. 11502_ Slug penetrates Wall. 11502_ Penetrated by Slug. 11502_ Slug penetrates Wall. 11502_ Field strength at 75. 11503_ Field strength at 69. 11504_ System corrupted: Heat flow error (+121). 11504_ Field strength at 41. 11505_ Penetrated by Slug. Map ----- +----------------------------------------------------+ | ##T # # ! #]=/ ## ## ## | | ##"" # # #]=/ ## ## ## | | ##"" # # #=// ## ## ## | | ##"" + # # * ## ####+##### | | ## # ########## + #### ##### | | ## # ### ###### ## #### ##### | | ########## ### ####################### ##?# ##### | | #?# ###= ### ####################?## #### #""## | | ### !*=!*!### ####################?## #### #T"## | | # # %[ %!*### ##### ###### | | ### ##"#####+##### ###### | | #### ## |!%!% #### ###### | | #### ## [!=! #### """""" ###### | | #### ##=! ! #### " " ###### | | #### ## #### " <" " ###### * | | #### ## ### " "" " ######+####+##### | | #### ## ### " " ### # ## | | ### ## ### """""" ### # ## | | ### ## ### ### # # | | ### ## * # ## BB ### # # | | #### ## =%! ## BB ### ! # #? | | # ####### ########## ;##### # # | | # # ### #### ############ # | | # # ## #####E ##########??####### | | # ###### #### ^ #####??#?########? | | #### ## ### ###### @ ^ ##########?#######?? | | ### ### # ##### KK ^ ###########?????### | | ##" ""##"" ###### 7 ^ ########?###?#?##### | | ### " ##### E ######?####?##?###? | | #### + ###### ^^ ;#########?########? | | ######### " # ##; ^ ;########?#####?###? | | ## # # # ####;// ##############??###?# | | ## # # # 7 E ;###############??### | | ## + # # BB ? ? #?##???? | | ## ![# # BB ##????#? | | ## =*!" " * E ? ##?#???? | | ## ==# "" # %*% ! ? ?#??#??#? | | ## """ " / * ? ? #??##?#? | | ## """ " # ## #;;+##+#?##?###??### | | ## """" " # # ##?#???#??# | | ## T"" # # # ?###??????#? | | ## # " ### ??###??#?##?? | | ## # "########## ? #??#??#???? | | ## # # # ?#######+##+########?## ?? ???????? | | ?######## ##" ### ? ? ? #? #? ???????? | | #########+######## ? ? ??#????????????? | | ###?? # ? ##???????????? | | ### ? ? ? ? ?? ?? ?????????????? | | ### ? ? # ??????????????? | | ?#? ? # ? ? ??? ? ???#?????????? | +----------------------------------------------------+ Best States ------------- Heat Dissipation 71 Coolant Potential 100 Energy Generation 45 Energy Capacity 940 Matter Stores 800 Matter Capacity 800 Sight Range 22 Robot Scan Range 16 Terrain Scan Range 24 Terrain Scan Density 210 Jamming Range 12 Corruption Prevention 12 Resistance: KI 20 Resistance: TH 20 Resistance: EX 20 Resistance: EM 20 Resistance: I 20 Resistance: S 20 Resistance: P 20 Weapon Cycling 30 Evasion (%) 50 Target Analysis 8 Offensive Hacking 22 Defensive Hacking 10 Item Schematics ----------------- None Robot Schematics ------------------ None Fabricated ------------ Weapon Cycler | x2 | -7/Factory | Preloaded L-41 Fighter | x3 | -6/Factory | Preloaded Alien Tech Used ----------------- None Achievements -------------- None Challenges ------------ None Game ------ Seed ActuatorCoilPenetrator Manual? 0 Play Time 01:53:42 Cumulative 297.6 hours Start 2021.05.25 @ 18:31:40 End 2021.06.01 @ 23:56:00 Sessions 11 Manual Loads 0 Difficulty Adventurer Special Mode None Game No. 229 Rogue 195 Adventurer 34 Explorer 0 Win Type - Total 2 Types 1/0/0/1/0/0/0/0/0 Lore% 44 Gallery% 72 Achievement% 45 Wizard Run 0 Options --------- ASCII 0 Keyboard 0 Movement Mouse Keybinds 0 Fullscreen 1 Font 18/SmallcapsGlow Map View 76x50 Tactical HUD 1 Map Filters NONE Filters NONE Steam 1 RUN: 389d0b60-3ba6-4eed-b393-9c99357b862e